bitfinex/quotes_ETHUSD_20250403
["timestamp","ask_amount","ask_price","bid_price","bid_amount"]
[1743688489980,0.7999,1782.0,1781.6,5.6128]
[1743688490147,0.7999,1782.0,1781.7,5.61247]
[1743688490738,0.7999,1782.0,1781.7,5.66859046]
[1743688490963,0.8249,1782.3,1782.1,5.6111]
[1743688491137,0.8249,1782.3,1782.0,5.61151]
[1743688491570,0.8249,1782.3,1782.0,11.22302]
[1743688491879,0.05000016,1782.4,1782.1,5.61132]
[1743688492047,0.05000016,1782.4,1782.0,6.733942]
[1743688492253,0.05000016,1782.4,1782.1,5.6112]
[1743688492475,0.05000016,1782.4,1782.0,12.345452]
[1743688492682,5.66048016,1782.4,1782.0,1.122302]
[1743688492983,5.66048016,1782.4,1781.9,5.61189]
[1743688492984,5.61086,1782.3,1781.9,5.61189]
[1743688493153,5.61042,1782.4,1782.0,5.6115]
[1743688493478,0.05000016,1782.4,1782.1,5.61129]
[1743688493767,0.05000016,1782.4,1782.2,11.22192]
[1743688493952,3.78143483,1783.1,1782.2,11.22192]
[1743688493953,0.05000016,1783.0,1782.5,0.8209]
[1743688494153,5.60775,1783.3,1782.5,0.8209]
[1743688494154,0.05000016,1783.2,1782.9,5.60883]
[1743688494375,0.05000016,1783.2,1782.8,5.60914]
[1743688494692,5.60868,1783.0,1782.5,5.61008]
[1743688494977,0.828,1782.8,1782.3,6.41873]
[1743688495181,0.828,1782.8,1782.0,5.61157]
[1743688495182,5.65956016,1782.7,1782.2,5.611]
[1743688495355,5.65956016,1782.7,1782.2,5.61087]
[1743688495754,5.65956016,1782.7,1782.2,11.22174]
[1743688496076,0.05000016,1782.7,1782.3,5.61064]
[1743688496395,5.61,1782.6,1782.2,5.61093]
[1743688496957,5.65954016,1782.7,1782.2,5.66696251]
[1743688497157,0.05000016,1782.7,1782.3,5.61058]
[1743688497355,0.7806,1782.6,1781.7,3.7711]
[1743688497566,5.61042,1782.4,1782.0,5.61155]
[1743688497771,0.05000016,1782.3,1782.0,5.61155]
[1743688497959,0.05000016,1782.3,1782.0,11.2231]
[1743688498171,5.66037016,1782.5,1782.0,5.61155]
[1743688498479,11.27074016,1782.5,1782.0,5.61155]
[1743688498678,7.5936,1782.6,1782.1,5.66742942]
[1743688498845,5.61045,1782.4,1781.9,5.61198]
[1743688499045,7.5936,1782.6,1782.0,0.05610942]
[1743688499277,0.7806,1782.6,1782.0,0.60610942]
[1743688499446,0.7806,1782.6,1781.7,10.321827]
[1743688499447,5.61055,1782.4,1781.9,5.61187]
[1743688499642,0.05000016,1782.3,1781.9,0.05610951]
[1743688499854,5.66015016,1782.5,1782.0,5.61149]
[1743688500147,0.05000016,1782.5,1782.1,5.61109]
[1743688500348,5.66011016,1782.5,1782.0,5.61165]
[1743688500576,6.39039,1782.6,1782.2,5.61093]
[1743688500577,0.7806,1782.6,1782.2,5.61093]
[1743688500780,0.05000016,1782.5,1782.0,5.61167]
[1743688501076,0.7806,1782.6,1782.2,11.22208]
[1743688501269,0.7806,1782.6,1782.2,5.61104]
[1743688501449,0.7806,1782.6,1782.2,5.66699251]
[1743688501958,0.8163,1783.0,1782.6,5.60962]
[1743688502153,0.8163,1783.0,1782.5,5.6099]
[1743688502154,6.42493,1783.0,1782.5,5.6099]
[1743688502482,5.65900016,1782.9,1782.5,5.60993]
[1743688502982,0.8163,1783.0,1782.6,11.27550619]
[1743688503281,0.8163,1783.0,1782.3,0.55]
[1743688503445,6.42497,1783.0,1782.5,11.21984]
[1743688503780,0.8163,1783.0,1782.6,5.6097]
[1743688503982,0.8163,1783.0,1782.6,0.05609339]
[1743688504286,0.7673,1783.5,1783.1,5.608]
[1743688504497,5.60809,1783.2,1782.7,6.811]
[1743688504700,5.60809,1783.2,1782.7,5.60944]
[1743688504865,0.05000016,1783.1,1782.6,0.55]
[1743688505196,5.60615,1783.8,1783.3,6.1575]
[1743688505393,5.60649,1783.7,1783.2,5.60777]
[1743688505598,11.21298,1783.7,1783.2,6.27961758]
[1743688505763,11.21298,1783.7,1783.2,6.223547]
[1743688505947,11.21216,1783.8,1783.2,6.27953748]
[1743688506153,0.8243,1783.9,1783.5,5.6069]
[1743688506354,5.606,1783.8,1783.2,6.223567]
[1743688506583,5.60648,1783.7,1783.3,0.05606989]
[1743688506792,5.606,1783.8,1783.4,5.60726]
[1743688507000,0.8243,1783.9,1783.3,6.79626769]
[1743688507159,5.6071,1783.5,1783.0,9.43546]
[1743688507356,0.8243,1783.9,1783.1,0.60607743]
[1743688507595,0.8243,1783.9,1783.4,5.60696]
[1743688507897,0.8243,1783.9,1783.1,7.359]
[1743688507898,0.8243,1783.9,1783.1,0.55]
[1743688508103,0.8243,1783.9,1783.0,6.43554]
[1743688508104,5.60715,1783.5,1783.0,12.04391]
[1743688508253,5.60665,1783.6,1783.1,5.66414552]
[1743688508453,0.796,1783.6,1782.8,0.55]
[1743688508801,5.60741,1783.4,1783.0,5.60841]
[1743688508998,5.60741,1783.4,1783.0,6.169251]
[1743688509156,5.60713,1783.5,1783.0,11.777641]
[1743688509488,5.60713,1783.5,1783.1,5.6641171]
[1743688509489,5.60698,1783.5,1783.1,5.6641171]
[1743688509782,5.60644,1783.7,1783.2,0.8128]
[1743688509983,5.60602,1783.8,1783.3,5.66363863]
[1743688510194,5.60602,1783.8,1783.4,5.60725]
[1743688510379,6.41074,1783.9,1783.4,5.60725]
[1743688510559,5.60625,1783.8,1783.3,6.25521386]
[1743688510759,0.805,1783.9,1783.5,5.60673]
[1743688510959,0.7627,1784.1,1783.6,0.05606046]
[1743688511178,5.60542,1784.0,1783.6,5.60653]
[1743688511398,5.60542,1784.0,1783.6,0.05605984]
[1743688511592,5.6059,1783.9,1783.5,0.05605985]
[1743688511895,0.7627,1784.1,1783.5,6.21286985]
[1743688512080,5.60552,1784.0,1783.6,5.60656]
[1743688512286,0.7627,1784.1,1783.6,1.17739748]
[1743688512581,5.60585,1783.9,1783.5,5.60693]
[1743688512899,5.60538,1784.0,1783.5,11.26980047]
[1743688513097,6.3678,1784.1,1783.6,5.60663]
[1743688513402,5.60476,1784.2,1783.8,5.60578]
[1743688513564,5.60476,1784.2,1783.6,0.55]
[1743688513565,5.60522,1784.1,1783.6,5.60662]
[1743688513902,5.60512,1784.1,1783.7,5.66219716]
[1743688514297,5.60512,1784.1,1783.4,5.60724]
[1743688514298,0.7575,1784.0,1783.4,5.60724]
[1743688514492,5.60742,1783.4,1782.9,6.3626]
[1743688514693,5.6076,1783.3,1782.9,6.3626]
[1743688514900,5.60729,1783.4,1783.0,5.60839]
[1743688515083,11.21419,1783.5,1783.0,6.86715869]
[1743688515258,5.60697,1783.5,1783.0,12.47554918]
[1743688515464,5.60653,1783.7,1783.0,1.20269106]
[1743688515662,0.7575,1783.8,1783.4,5.60698]
[1743688515887,6.36365,1783.8,1783.3,6.39159]
[1743688516092,5.60594,1783.9,1783.4,0.639159]
[1743688516495,5.60569,1783.9,1783.4,6.246309]
[1743688516691,7.5718,1784.0,1783.4,0.69522328]
[1743688516896,5.60595,1783.9,1783.4,5.60724]
[1743688517198,5.60595,1783.9,1783.3,0.7842]
[1743688517199,5.60655,1783.7,1783.3,0.7842]
[1743688517366,11.21311,1783.7,1783.3,0.7842]
[1743688517567,7.5718,1784.0,1783.7,5.60617]
[1743688517773,0.42804052,1784.2,1783.7,6.46994322]
[1743688517996,6.03290052,1784.2,1783.8,0.64699432]
[1743688518192,5.60536,1784.1,1783.6,5.60651]
[1743688518392,6.40457,1784.3,1783.7,0.05605362]
[1743688518593,5.60478,1784.2,1783.8,5.60597]
[1743688518793,0.8001,1784.3,1783.8,5.66196269]
[1743688519068,5.60477,1784.2,1783.9,0.56619627]
[1743688519279,5.60518,1784.1,1783.8,0.05604865]
[1743688519480,5.60475,1784.2,1783.8,5.66195865]
[1743688519686,6.40458,1784.3,1783.8,5.66187865]
[1743688519879,6.40471,1784.3,1783.9,5.60554]
[1743688520103,5.60528,1784.1,1783.8,0.7931]
[1743688520304,6.40459,1784.3,1783.8,6.45503271]
[1743688520508,6.40459,1784.3,1783.8,0.05605271]
[1743688520509,5.60557,1784.0,1783.8,0.05605271]
[1743688520803,5.60651,1783.7,1783.3,5.60757]
[1743688520974,5.60609,1783.8,1783.3,5.66361969]
[1743688521175,0.8275,1784.0,1783.5,5.60682]
[1743688521176,6.43293,1784.0,1783.5,5.60682]
[1743688521500,5.60584,1783.9,1783.5,5.60682]
[1743688521702,5.60584,1783.9,1783.6,0.05605933]
[1743688521884,5.60584,1783.9,1783.5,11.21355]
[1743688522203,6.43289,1784.0,1783.6,5.66265933]
[1743688522412,0.8275,1784.0,1783.6,6.78948226]
[1743688522709,5.60488,1784.2,1783.7,11.21249]
[1743688522884,9.40027,1784.3,1783.8,5.66182588]
[1743688523086,0.7958,1784.3,1783.9,5.60564]
[1743688523266,5.60444,1784.3,1784.0,0.05605149]
[1743688523466,5.60417,1784.4,1784.0,5.66131149]
[1743688523706,0.7512,1784.5,1784.0,0.05605149]
[1743688523868,5.60412,1784.4,1784.0,0.05605149]
[1743688524077,0.7512,1784.5,1784.1,5.60505]
[1743688524284,5.60413,1784.4,1784.0,5.60534]
[1743688524607,5.60353,1784.6,1784.1,6.21109178]
[1743688524797,11.20729,1784.6,1784.2,5.60461]
[1743688524992,11.20659,1784.7,1784.3,5.66046021]
[1743688525192,11.20659,1784.7,1783.9,0.8177]
[1743688525193,5.60454,1784.3,1783.9,0.8177]
[1743688525386,5.60478,1784.2,1783.9,0.8177]
[1743688525582,5.60386,1784.5,1784.0,5.66141693]
[1743688525784,5.60423,1784.4,1784.0,5.60537]
[1743688526021,5.60423,1784.4,1784.1,0.05604148]
[1743688526194,5.60448,1784.3,1783.9,6.42339]
[1743688526413,5.60351,1784.6,1784.1,0.55]
[1743688526707,5.60382,1784.5,1784.2,0.05604023]
[1743688526903,6.38328,1784.8,1784.3,0.7801]
[1743688527106,5.60336,1784.7,1784.3,0.7801]
[1743688527433,46.38242514,1785.0,1784.3,0.7801]
[1743688527434,5.60356,1784.6,1784.3,0.7801]
[1743688527772,5.60356,1784.6,1784.2,11.2093]
[1743688527773,0.8202,1784.8,1784.0,0.8063]
[1743688528020,5.60435,1784.4,1784.0,0.8063]
[1743688528323,5.60435,1784.4,1783.5,5.60691]
[1743688528324,5.60583,1783.9,1783.5,5.60691]
[1743688528502,11.21096,1784.0,1783.5,6.4132]
[1743688529009,0.7515,1784.1,1783.6,0.05605816]
[1743688529177,5.60412,1784.4,1783.6,0.05605816]
[1743688529504,5.60579,1783.9,1783.5,0.86235629]
[1743688529678,5.60559,1784.0,1783.6,5.66253041]
[1743688529875,5.60481,1784.2,1783.7,6.15622]
[1743688530104,5.60597,1783.9,1783.5,0.8063]
[1743688530321,5.60538,1784.0,1783.5,6.41313]
[1743688530618,5.60538,1784.0,1783.6,5.6626704]
[1743688530826,11.21038,1784.1,1783.6,11.2692804]
[1743688531019,5.60559,1784.0,1783.6,5.60661]
[1743688531232,5.6048,1784.2,1783.7,0.55]
[1743688531389,0.7594,1784.3,1783.8,0.05605068]
[1743688531591,5.60418,1784.4,1783.8,0.05605068]
[1743688531592,11.20857,1784.4,1783.9,6.3568]
[1743688531776,5.60418,1784.4,1783.9,6.3568]
[1743688531980,6.38223,1784.5,1784.0,0.05605064]
[1743688532196,6.38234,1784.5,1784.1,5.60496]
[1743688532390,5.60394,1784.5,1784.2,0.05604125]
[1743688532593,5.60413,1784.4,1784.0,5.60536]
[1743688532776,5.60466,1784.3,1783.9,0.7513]
[1743688533004,5.60408,1784.5,1784.0,5.60524]
[1743688533221,5.60408,1784.5,1783.9,1.387014]
[1743688533222,5.60381,1784.5,1783.9,6.992644]
[1743688533387,11.20974,1784.2,1783.9,0.7513]
[1743688533581,6.40904,1784.4,1783.9,0.05604947]
[1743688533776,5.60445,1784.3,1783.9,11.21118]
[1743688534025,15.40039,1784.7,1784.1,5.60496]
[1743688534026,5.60384,1784.5,1784.1,5.60496]
[1743688534242,11.20784,1784.5,1784.1,6.40446]
[1743688534528,0.8111,1784.6,1784.1,6.40446]
[1743688534529,11.20849,1784.4,1784.1,0.7995]
[1743688534693,12.01847,1784.6,1784.2,0.05604161]
[1743688534880,6.41469,1784.6,1784.2,5.66078161]
[1743688535216,5.60426,1784.4,1784.1,0.7995]
[1743688535836,5.60426,1784.4,1784.1,0.85554166]
[1743688536006,3.0,1784.7,1784.1,0.7995]
[1743688536186,5.60454,1784.3,1784.1,0.7995]
[1743688536586,5.60454,1784.3,1783.9,11.76119]
[1743688536587,11.20916,1784.3,1783.9,6.96168]
[1743688536842,5.60506,1784.1,1784.0,0.05604605]
[1743688536997,5.60506,1784.1,1783.2,6.41389]
[1743688536998,5.60663,1783.6,1783.2,6.41389]
[1743688537323,5.60663,1783.6,1783.2,0.8061]
[1743688537324,5.60696,1783.5,1783.2,0.8061]
[1743688537534,11.21347,1783.6,1783.2,0.8061]
[1743688537939,5.60728,1783.4,1783.0,6.43713]
[1743688538243,5.60624,1783.8,1783.3,5.60746]
[1743688538400,5.60624,1783.8,1783.4,0.05606432]
[1743688538401,5.60642,1783.7,1783.4,0.05606432]
[1743688538588,11.21293,1783.7,1783.2,11.76557]
[1743688538791,6.37823,1783.9,1783.4,0.8269]
[1743688538991,5.60573,1783.9,1783.6,0.55]
[1743688539414,5.60511,1784.1,1783.6,1.165684]
[1743688539616,5.60493,1784.2,1783.7,5.60621]
[1743688539834,5.60559,1784.0,1783.6,0.55]
[1743688540135,5.60609,1783.8,1783.4,0.8269]
[1743688540350,11.21167,1783.9,1783.5,6.15682]
[1743688540554,5.60602,1783.8,1783.6,0.05605935]
[1743688540845,5.60646,1783.7,1783.5,0.05605985]
[1743688541139,5.60572,1783.9,1783.5,5.66296985]
[1743688541303,5.60548,1784.0,1783.6,0.56629698]
[1743688541499,0.7616,1784.2,1783.6,0.56629698]
[1743688541751,5.60524,1784.1,1783.7,5.60619]
[1743688542098,5.60477,1784.2,1783.8,5.60592]
[1743688542298,5.60518,1784.1,1783.8,0.751]
[1743688542607,6.795,1784.5,1783.8,0.751]
[1743688542608,0.41340402,1784.5,1783.9,7.345]
[1743688542811,0.41340402,1784.5,1784.4,0.55]
[1743688543010,0.41340402,1784.5,1784.4,0.85043024]
[1743688543201,0.41340402,1784.5,1784.4,7.00455024]
[1743688543401,5.60243,1785.0,1784.5,5.60378]
[1743688543635,5.60192,1785.1,1784.6,0.05602796]
[1743688543814,5.6028,1784.9,1784.5,0.056028]
[1743688544016,11.2056,1784.9,1784.5,5.659828]
[1743688544253,0.41260529,1784.9,1784.4,0.7944]
[1743688544404,5.60363,1784.6,1784.1,0.05603804]
[1743688544605,5.60394,1784.5,1784.2,0.7686]
[1743688544836,5.60443,1784.3,1784.2,0.7686]
[1743688545043,5.60443,1784.3,1784.0,0.55]
[1743688545044,5.60486,1784.2,1783.9,0.7876]
[1743688545663,0.8201,1784.4,1783.8,0.635719]
[1743688545664,6.42424,1784.4,1783.8,0.635719]
[1743688545947,11.21058,1784.1,1783.8,0.05605039]
[1743688546161,5.60443,1784.3,1783.8,0.05605039]
[1743688546456,5.60538,1784.0,1783.7,0.7657]
[1743688546602,5.60478,1784.2,1783.8,0.05605309]
[1743688546807,5.60478,1784.2,1783.8,0.6988294]
[1743688547022,5.6051,1784.1,1783.8,0.6988294]
[1743688547216,11.20982,1784.2,1783.8,6.3048194]
[1743688547518,5.60508,1784.1,1783.8,0.6988294]
[1743688547753,5.60478,1784.2,1783.6,0.55]
[1743688547754,5.60596,1783.9,1783.6,0.55]
[1743688547954,0.7559,1784.2,1783.7,0.05606194]
[1743688548289,11.21181,1783.9,1783.4,12.00304]
[1743688548437,11.21181,1783.9,1783.5,0.05605914]
[1743688548634,5.60613,1783.8,1783.5,1.20590991]
[1743688548870,11.21237,1783.8,1783.5,0.05606323]
[1743688549064,5.60569,1783.9,1783.5,0.05606323]
[1743688549283,11.2116,1783.9,1783.5,5.66287323]
[1743688549454,5.60606,1783.8,1783.5,0.05606323]
[1743688549650,11.21098,1784.0,1783.6,5.60649]
[1743688549869,11.21098,1784.0,1783.6,6.22774532]
[1743688550070,5.60587,1783.9,1783.6,0.62125532]
[1743688550234,5.60689,1783.6,1783.4,0.7887]
[1743688550439,5.60695,1783.5,1783.1,0.773]
[1743688550871,5.60695,1783.5,1783.2,0.05607019]
[1743688551190,5.60666,1783.6,1783.2,0.05607019]
[1743688551989,5.60695,1783.5,1783.2,0.05607019]
[1743688552292,5.60758,1783.3,1783.2,0.64371202]
[1743688552460,5.60735,1783.4,1783.1,0.82907431]
[1743688552642,5.60735,1783.4,1783.1,0.773]
[1743688552842,5.60696,1783.5,1783.2,0.05607231]
[1743688553044,11.21323,1783.7,1783.3,0.55]
[1743688553244,5.60675,1783.6,1783.3,0.615777]
[1743688553557,5.60655,1783.7,1783.2,6.21384924]
[1743688553757,5.6068,1783.6,1783.2,0.55]
[1743688553956,5.60737,1783.4,1783.1,0.773]
[1743688554163,5.6077,1783.3,1782.8,13.1721]
[1743688554365,5.6073,1783.4,1782.9,0.05608087]
[1743688554560,5.60841,1783.1,1782.8,0.771]
[1743688555190,5.60863,1783.0,1782.5,5.60992]
[1743688555355,5.60863,1783.0,1782.4,6.792]
[1743688555356,5.60927,1782.8,1782.4,6.40749]
[1743688555549,5.60891,1782.9,1782.5,0.05609325]
[1743688556076,5.60891,1782.9,1782.4,6.40732]
[1743688556077,5.60928,1782.8,1782.4,0.7971]
[1743688556442,5.60928,1782.8,1782.4,6.40743]
[1743688556943,5.60928,1782.8,1782.5,0.05609154]
[1743688557144,5.60928,1782.8,1782.5,0.70244369]
[1743688557367,5.60891,1782.9,1782.5,0.70244369]
[1743688557579,11.21797,1782.9,1782.5,0.70244369]
[1743688558481,5.60891,1782.9,1782.5,0.70244369]
[1743688558685,11.21797,1782.9,1782.5,0.70244369]
[1743688558883,5.60891,1782.9,1782.5,0.70244369]
[1743688559067,11.21799,1782.9,1782.5,0.70244369]
[1743688559385,5.60891,1782.9,1782.5,6.31251369]
[1743688559567,5.60946,1782.7,1782.6,0.63125137]
[1743688559878,0.799,1783.1,1782.4,0.7971]
[1743688559879,5.60988,1782.6,1782.4,0.7971]
[1743688560267,11.21917,1782.7,1782.4,0.7971]
[1743688560469,16.20037,1783.1,1782.4,0.7971]
[1743688560470,5.6094,1782.8,1782.5,0.05609716]
[1743688560673,5.60958,1782.7,1782.4,0.7971]
[1743688561049,13.20039,1783.1,1782.5,0.05609443]
[1743688561258,5.60862,1783.0,1782.6,6.15968]
[1743688561469,5.60862,1783.0,1782.7,0.67205544]
[1743688561751,5.60862,1783.0,1782.7,0.05608744]
[1743688561951,5.60862,1783.0,1782.6,0.55]
[1743688561952,5.60886,1782.9,1782.6,0.55]
[1743688562154,11.21735,1783.0,1782.7,0.05608746]
[1743688562353,5.60862,1783.0,1782.6,0.55]
[1743688562553,5.60862,1783.0,1782.7,0.05608744]
[1743688562761,5.60896,1782.9,1782.4,0.7971]
[1743688562962,5.61004,1782.6,1782.4,0.7971]
[1743688563167,5.61004,1782.6,1782.2,5.61079]
[1743688563168,5.61011,1782.5,1782.2,0.05610044]
[1743688563782,5.61072,1782.3,1782.0,2.97239512]
[1743688563951,0.42007368,1782.5,1781.9,0.7632]
[1743688564355,5.61041,1782.4,1781.9,0.81931288]
[1743688564752,5.61041,1782.4,1782.0,5.61157]
[1743688564995,5.61038,1782.5,1782.1,0.60610699]
[1743688565205,5.6102,1782.5,1782.1,6.21744699]
[1743688565372,11.21991,1782.6,1782.2,5.61099]
[1743688565558,11.21995,1782.6,1782.3,0.561099]
[1743688565957,5.61013,1782.5,1782.3,0.561099]
[1743688566164,11.22041,1782.5,1782.1,6.16134]
[1743688566403,11.21989,1782.6,1782.2,0.0561026]
[1743688566699,5.61011,1782.5,1782.2,0.0561026]
[1743688566907,5.60978,1782.6,1781.9,0.7632]
[1743688567058,0.7915,1782.3,1781.5,12.40624]
[1743688567264,5.61137,1782.1,1781.7,5.61247]
[1743688567458,11.22234,1782.2,1781.8,6.48276522]
[1743688567660,0.7915,1782.3,1781.8,0.87061522]
[1743688567870,5.61163,1782.1,1781.8,0.8145]
[1743688568373,5.6122,1781.9,1781.6,2.055124]
[1743688568609,5.61218,1781.9,1781.6,2.055124]
[1743688568812,6.40247,1782.3,1781.6,0.8145]
[1743688568813,5.61176,1782.0,1781.6,0.8145]
[1743688569116,5.61155,1782.1,1781.6,6.42732]
[1743688569259,5.61139,1782.1,1781.7,5.66867745]
[1743688569460,5.61178,1782.0,1781.6,12.04007]
[1743688569761,11.223,1782.1,1781.7,6.87272446]
[1743688570209,5.61139,1782.1,1781.7,12.48518446]
[1743688570360,5.61084,1782.3,1781.9,5.61192]
[1743688570565,5.61104,1782.2,1781.9,5.66803241]
[1743688570761,5.61071,1782.4,1782.0,5.61163]
[1743688570995,5.61074,1782.3,1782.0,6.42003]
[1743688571266,3.7564,1782.5,1782.0,0.864509]
[1743688571267,5.61013,1782.5,1782.0,0.864509]
[1743688571593,5.60984,1782.6,1782.3,0.8084]
[1743688571885,5.6098,1782.6,1782.3,0.8084]
[1743688572106,5.6098,1782.6,1782.4,0.05609768]
[1743688572291,5.60948,1782.7,1782.4,0.70361845]
[1743688572696,0.77,1783.1,1782.4,0.70361845]
[1743688572885,5.60892,1782.9,1782.5,5.60998]
[1743688573088,5.60892,1782.9,1782.6,0.05609172]
[1743688573389,5.60967,1782.7,1782.4,0.55]
[1743688573602,5.60967,1782.7,1782.4,0.05609739]
[1743688573812,5.60959,1782.7,1782.3,13.21207]
[1743688573981,5.61026,1782.5,1782.3,0.8084]
[1743688574363,5.60915,1782.8,1782.3,1.45595321]
[1743688574602,5.61025,1782.5,1782.3,0.8084]
[1743688574811,5.6112,1782.2,1781.9,1.99173224]
[1743688574965,5.61278,1781.7,1781.3,5.61377]
[1743688575170,11.22558,1781.7,1781.3,6.42247]
[1743688575462,6.38038,1781.9,1781.3,0.8087]
[1743688575665,5.61254,1781.8,1781.4,5.66940859]
[1743688575906,5.61231,1781.8,1781.4,0.05612859]
[1743688576116,5.61213,1781.9,1781.5,5.61314]
[1743688576263,5.6126,1781.8,1781.5,1.111314]
[1743688576617,5.61201,1781.9,1781.4,5.61352]
[1743688576905,11.22442,1781.9,1781.5,6.16323]
[1743688577073,11.22443,1781.9,1781.5,6.16308]
[1743688577280,11.22448,1781.9,1781.5,6.16308]
[1743688577803,5.61221,1781.9,1781.5,11.77618]
[1743688578003,11.22373,1782.0,1781.6,6.790528]
[1743688578164,5.61199,1781.9,1781.6,1.177618]
[1743688578564,5.61148,1782.1,1781.7,6.92736]
[1743688578783,6.42492,1782.4,1781.7,6.92736]
[1743688578784,5.61106,1782.2,1781.8,5.61223]
[1743688579014,10.6075,1782.4,1781.7,6.92736]
[1743688579015,5.6114,1782.1,1781.7,1.3148]
[1743688579162,5.61173,1782.0,1781.7,2.1253308]
[1743688579610,5.61173,1782.0,1781.7,7.7379108]
[1743688579762,5.61173,1782.0,1781.7,2.1253308]
[1743688580909,5.61075,1782.3,1781.7,1.5753308]
[1743688581098,5.61075,1782.3,1781.7,0.7648]
[1743688581774,5.61209,1781.9,1781.7,0.82092052]
[1743688581975,11.22435,1781.9,1781.7,0.7648]
[1743688582203,5.61209,1781.9,1781.7,0.7648]
[1743688583181,0.7882,1782.1,1781.4,0.7753]
[1743688583381,5.61198,1781.9,1781.1,0.8745]
[1743688583618,11.22757,1781.4,1781.1,0.8745]
[1743688583915,5.61391,1781.3,1781.1,0.93063883]
[1743688584100,5.61375,1781.4,1781.1,0.93063883]
[1743688584305,11.22762,1781.4,1781.1,0.93063883]
[1743688584524,5.61375,1781.4,1781.1,0.93063883]
[1743688584669,6.4243,1781.8,1781.2,0.55]
[1743688584873,5.61263,1781.7,1781.3,5.66989064]
[1743688585318,5.61303,1781.6,1781.2,6.61220388]
[1743688585525,5.61263,1781.7,1781.3,5.66995874]
[1743688585682,11.22542,1781.7,1781.3,5.61383]
[1743688585885,11.22542,1781.7,1781.4,0.561383]
[1743688586175,5.61263,1781.7,1781.4,0.561383]
[1743688586370,5.61341,1781.5,1781.1,0.8745]
[1743688586589,5.61341,1781.5,1781.1,0.93063759]
[1743688586821,5.61359,1781.4,1781.1,0.8745]
[1743688587016,5.61359,1781.4,1781.1,0.93063761]
[1743688587219,5.61359,1781.4,1781.1,1.58517163]
[1743688587727,5.61329,1781.5,1781.1,7.19966163]
[1743688587877,11.22673,1781.5,1781.1,7.19966163]
[1743688588081,5.61419,1781.2,1781.1,0.05]
[1743688588280,5.61401,1781.3,1781.1,0.05]
[1743688588515,6.80156379,1781.6,1781.1,0.05]
[1743688588823,5.61335,1781.5,1781.2,0.7632]
[1743688588995,11.22681,1781.5,1781.2,1.460969]
[1743688589199,5.61335,1781.5,1781.2,1.460969]
[1743688589580,11.22684,1781.5,1781.2,1.460969]
[1743688589774,5.61335,1781.5,1781.2,1.460969]
[1743688589975,5.61357,1781.4,1781.2,1.460969]
[1743688590180,5.61357,1781.4,1781.2,0.7632]
[1743688590828,5.61297,1781.6,1781.2,0.7632]
[1743688590992,5.61297,1781.6,1781.3,5.66996137]
[1743688591198,5.61297,1781.6,1781.3,0.05613137]
[1743688591415,5.61297,1781.6,1781.3,5.66995137]
[1743688591722,0.7594,1782.3,1781.7,5.6125]
[1743688591924,5.61157,1782.1,1781.7,5.6686182]
[1743688592078,11.22323,1782.1,1781.7,5.6686182]
[1743688592280,5.61157,1782.1,1781.7,5.6686182]
[1743688592579,11.22317,1782.1,1781.8,0.56686182]
[1743688592781,5.61154,1782.1,1781.8,0.56686182]
[1743688593132,5.61184,1782.0,1781.8,0.56686182]
[1743688593311,11.2237,1782.0,1781.8,0.56686182]
[1743688593518,11.2237,1782.0,1781.6,6.43163]
[1743688593519,11.22297,1782.1,1781.6,0.8188]
[1743688593699,5.6112,1782.2,1781.8,5.61219]
[1743688593996,11.22244,1782.2,1781.8,5.61219]
[1743688594185,5.61138,1782.1,1781.8,5.61219]
[1743688594619,5.61116,1782.2,1781.9,5.66807787]
[1743688594789,11.2224,1782.2,1781.9,1.12803479]
[1743688594993,5.61136,1782.1,1781.8,5.61227]
[1743688595212,0.7594,1782.3,1781.6,0.8188]
[1743688595423,5.61217,1781.9,1781.6,0.8188]
[1743688596019,5.61171,1782.0,1781.6,6.43154]
[1743688596384,5.61199,1781.9,1781.6,0.8749204]
[1743688596580,11.22351,1782.0,1781.6,7.69793144]
[1743688596914,5.61248,1781.8,1781.6,2.02893104]
[1743688597211,3.0,1782.2,1781.5,5.66926465]
[1743688597212,5.61204,1781.9,1781.5,5.66926465]
[1743688597630,6.37013,1782.3,1781.6,5.61281]
[1743688597631,5.61173,1782.0,1781.6,5.61281]
[1743688597910,5.61138,1782.1,1781.8,0.8303]
[1743688598110,5.61138,1782.1,1781.8,6.4426]
[1743688598314,5.61109,1782.2,1781.8,7.64811]
[1743688598515,11.22234,1782.2,1781.8,7.64811]
[1743688598812,5.61109,1782.2,1781.8,7.64811]
[1743688598985,0.7594,1782.3,1781.8,2.03581]
[1743688599190,5.61168,1782.0,1781.8,0.8303]
[1743688599600,5.61143,1782.1,1781.8,0.8864163]
[1743688599823,5.61171,1782.0,1781.8,0.8303]
[1743688600130,6.37015,1782.3,1781.9,5.61189]
[1743688600297,11.22248,1782.2,1781.8,6.44257]
[1743688600502,5.6114,1782.1,1781.8,7.086827]
[1743688600733,11.22242,1782.2,1781.8,7.14283274]
[1743688600891,5.61137,1782.1,1781.8,7.14283274]
[1743688601571,5.61104,1782.2,1781.8,0.8303]
[1743688601828,0.7594,1782.3,1781.8,0.8303]
[1743688601988,5.61085,1782.3,1782.0,5.61166]
[1743688602194,5.61117,1782.2,1781.9,5.61195]
[1743688602404,5.61043,1782.4,1782.0,6.172775]
[1743688602694,6.365,1782.5,1782.0,0.561195]
[1743688602885,5.61124,1782.2,1782.0,0.561195]
[1743688603086,5.61124,1782.2,1781.8,6.44239]
[1743688603087,5.61135,1782.1,1781.8,6.44239]
[1743688603338,5.61135,1782.1,1781.8,6.44259]
[1743688603483,5.61135,1782.1,1781.8,0.8303]
[1743688603849,5.61176,1782.0,1781.8,0.8303]